bitfinex/quotes_SOLUSD_20240811
["timestamp","ask_amount","ask_price","bid_price","bid_amount"]
[1723338786826,9.63,155.28,155.24,0.25098]
[1723338787018,9.63,155.29,155.24,0.12549]
[1723338787221,9.63,155.29,155.24,0.25098]
[1723338787421,9.63,155.29,155.24,0.12549]
[1723338787617,7.2845721,155.33,155.24,10.91819292]
[1723338787808,9.63,155.32,155.25,65.50196]
[1723338788016,7.2845721,155.33,155.25,20.50196]
[1723338788017,9.63,155.31,155.25,20.50196]
[1723338788209,9.63,155.3,155.25,0.37647]
[1723338788913,7.2845721,155.33,155.26,0.12549]
[1723338789229,7.2845721,155.33,155.28,9.75549]
[1723338789230,0.8473721,155.33,155.28,9.75549]
[1723338789431,0.8473721,155.33,155.3,0.12549]
[1723338789810,0.8473721,155.33,155.29,9.63]
[1723338789811,0.8473721,155.33,155.29,0.12549]
[1723338790009,0.8473721,155.33,155.29,11.41967747]
[1723338790240,0.8473721,155.33,155.29,0.37647]
[1723338790445,0.8473721,155.33,155.3,0.12549]
[1723338790648,0.8473721,155.33,155.29,0.37647]
[1723338790807,0.8473721,155.33,155.3,0.12549]
[1723338794135,0.8473721,155.33,155.29,0.12549]
[1723338794346,10.4773721,155.33,155.26,9.63]
[1723338794550,9.63,155.32,155.25,16.0851]
[1723338794737,9.63,155.32,155.25,6.4551]
[1723338795051,0.8473721,155.33,155.26,9.63]
[1723338795241,10.4773721,155.33,155.26,9.63]
[1723338795752,10.4773721,155.33,155.27,0.12549]
[1723338795957,10.4773721,155.33,155.27,0.37647]
[1723338796246,0.8473721,155.33,155.27,10.00647]
[1723338796424,10.4773721,155.33,155.27,0.37647]
[1723338797425,10.4773721,155.33,155.27,0.25098]
[1723338797426,9.63,155.31,155.27,0.25098]
[1723338797626,9.63,155.31,155.25,20.12549]
[1723338797838,9.63,155.31,155.26,0.37647]
[1723338798548,9.63,155.32,155.26,0.37647]
[1723338798756,9.63,155.32,155.27,0.12549]
[1723338798929,10.4773721,155.33,155.27,0.12549]
[1723338799257,0.8473721,155.33,155.27,56.04335247]
[1723338799431,0.8473721,155.33,155.28,9.88098]
[1723338799743,0.8473721,155.33,155.29,1.41320846]
[1723338799934,0.8473721,155.33,155.3,1.53862621]
[1723338800130,0.8473721,155.33,155.3,1.41313621]
[1723338800925,0.8473721,155.33,155.3,0.12549]
[1723338801131,0.8473721,155.33,155.3,0.25098]
[1723338801538,0.8473721,155.33,155.31,0.12549]
[1723338801735,0.8473721,155.33,155.31,0.25098]
[1723338802631,0.8473721,155.33,155.27,55.0702]
[1723338802632,10.4773721,155.33,155.27,55.0702]
[1723338802827,10.4773721,155.33,155.28,20.50196]
[1723338803028,0.8473721,155.33,155.28,30.13196]
[1723338803428,10.4773721,155.33,155.28,0.50196]
[1723338804345,0.8473721,155.33,155.28,0.50196]
[1723338805658,0.8473721,155.33,155.07,32.81355292]
[1723338805659,9.63,155.32,155.25,9.63]
[1723338805944,9.63,155.32,155.26,20.0]
[1723338806137,10.4773721,155.33,155.26,20.0]
[1723338806546,10.4773721,155.33,155.26,29.63]
[1723338806729,10.4773721,155.33,155.27,0.12549]
[1723338806937,10.4773721,155.33,155.27,0.37647]
[1723338807251,0.8473721,155.33,155.28,0.12549]
[1723338807448,0.8473721,155.33,155.28,9.75549]
[1723338807656,0.8473721,155.33,155.29,1.66414621]
[1723338807837,0.8473721,155.33,155.3,1.28768206]
[1723338808951,0.8473721,155.33,155.31,0.37647]
[1723338811147,0.8473721,155.33,155.29,45.0]
[1723338811345,9.63,155.32,155.26,20.0]
[1723338811854,9.63,155.32,155.25,9.63]
[1723338812241,0.8473721,155.33,155.21,13.85822249]
[1723338812438,0.8473721,155.33,155.26,9.63]
[1723338812635,10.4773721,155.33,155.27,0.50196]
[1723338815160,0.8473721,155.33,155.27,0.50196]
[1723338815458,10.4773721,155.33,155.27,0.50196]
[1723338815649,10.4773721,155.33,155.28,0.12549]
[1723338815848,0.8473721,155.33,155.28,0.12549]
[1723338816653,0.8473721,155.33,155.29,9.63]
[1723338816860,0.8473721,155.33,155.3,0.50196]
[1723338817774,0.8473721,155.33,155.3,1.78955066]
[1723338818265,0.8473721,155.33,155.3,56.41954099]
[1723338818775,0.8473721,155.33,155.3,55.13196]
[1723338819257,0.8473721,155.33,155.3,0.50196]
[1723338819463,0.8473721,155.33,155.3,0.37647]
[1723338819663,0.8473721,155.33,155.31,0.12549]
[1723338819959,0.8473721,155.33,155.31,45.12549]
[1723338820160,0.8473721,155.33,155.32,0.12549]
[1723338820463,0.8473721,155.33,155.32,0.37647]
[1723338820658,0.8473721,155.33,155.32,11.41941395]
[1723338821384,0.8473721,155.33,155.32,56.41941395]
[1723338821861,0.8473721,155.33,155.32,76.41941395]
[1723338824972,15.9063,155.42,155.33,0.12549]
[1723338825278,6.5901,155.45,155.39,0.12549]
[1723338825490,16.2201,155.45,155.39,0.50196]
[1723338825663,16.2201,155.45,155.39,45.50196]
[1723338826275,16.2201,155.45,155.39,0.37647]
[1723338826276,9.63,155.44,155.39,0.37647]
[1723338826486,9.63,155.42,155.35,9.75549]
[1723338826771,6.5901,155.45,155.38,9.63]
[1723338826963,16.2201,155.45,155.39,21.53786753]
[1723338827149,16.2201,155.45,155.39,20.25098]
[1723338827350,9.63,155.44,155.39,20.0]
[1723338827586,9.63,155.44,155.38,20.0]
[1723338827763,9.63,155.44,155.39,0.12549]
[1723338827965,6.5901,155.45,155.39,0.12549]
[1723338828170,9.63,155.44,155.39,0.12549]
[1723338828682,16.2201,155.45,155.39,0.12549]
[1723338828876,16.2201,155.45,155.39,0.37647]
[1723338829266,6.5901,155.45,155.4,0.12549]
[1723338829678,6.5901,155.45,155.39,0.25098]
[1723338829873,16.2201,155.45,155.39,0.12549]
[1723338830268,16.2201,155.45,155.38,0.12549]
[1723338830269,9.63,155.44,155.38,0.12549]
[1723338830472,9.63,155.42,155.36,0.12549]
[1723338830775,6.5901,155.45,155.37,0.12549]
[1723338830956,9.63,155.44,155.37,10.00647]
[1723338831284,9.63,155.44,155.38,0.12549]
[1723338831584,9.63,155.43,155.37,0.37647]
[1723338831878,9.63,155.42,155.37,0.37647]
[1723338832879,9.63,155.41,155.37,0.25098]
[1723338833076,9.63,155.41,155.36,0.37647]
[1723338834379,6.5901,155.45,155.36,0.37647]
[1723338834584,6.5901,155.45,155.38,0.12549]
[1723338834799,9.63,155.44,155.38,45.37647]
[1723338834973,9.63,155.44,155.39,0.12549]
[1723338835467,16.2201,155.45,155.39,0.12549]
[1723338837969,16.2201,155.45,155.4,0.12549]
[1723338838164,9.63,155.45,155.41,16.5479]
[1723338838382,6.7297177,155.48,155.43,9.75549]
[1723338838590,0.8473721,155.49,155.44,0.25098]
[1723338838881,0.8473721,155.49,155.44,65.37647]
[1723338839290,0.8473721,155.49,155.44,20.37647]
[1723338839471,0.8473721,155.49,155.44,0.37647]
[1723338839666,0.8473721,155.49,155.45,0.12549]
[1723338839870,0.8473721,155.49,155.45,45.12549]
[1723338840067,0.8473721,155.49,155.46,0.37647]
[1723338841187,0.8473721,155.49,155.46,20.0]
[1723338841398,0.8473721,155.49,155.45,1.41178177]
[1723338841570,0.8473721,155.49,155.46,0.25098]
[1723338841770,0.8473721,155.49,155.47,0.12549]
[1723338841969,0.8473721,155.49,155.45,20.0]
[1723338842287,0.8473721,155.49,155.44,0.12549]
[1723338842474,0.8473721,155.49,155.44,45.37647]
[1723338842790,0.8473721,155.49,155.45,20.0]
[1723338842997,0.8473721,155.49,155.46,0.50196]
[1723338843292,0.8473721,155.49,155.46,45.50196]
[1723338843494,0.8473721,155.49,155.46,0.50196]
[1723338843871,0.8473721,155.49,155.46,45.50196]
[1723338844269,0.8473721,155.49,155.46,0.50196]
[1723338845596,0.8473721,155.49,155.43,20.0]
[1723338845797,0.8473721,155.49,155.44,0.25098]
[1723338846275,0.8473721,155.49,155.42,19.08]
[1723338846596,0.8473721,155.49,155.39,19.08]
[1723338848198,0.8473721,155.49,155.4,20.0]
[1723338848492,0.8473721,155.49,155.41,20.36667837]
[1723338848679,0.8473721,155.49,155.45,19.20549]
[1723338848884,0.8473721,155.49,155.46,0.37647]
[1723338849272,0.8473721,155.49,155.44,20.0]
[1723338849479,0.8473721,155.49,155.45,0.37647]
[1723338850285,0.8473721,155.49,155.46,0.12549]
[1723338853399,0.8473721,155.49,155.46,20.12549]
[1723338853595,0.8473721,155.49,155.48,0.12549]
[1723338856295,0.8473721,155.49,155.46,20.0]
[1723338856583,0.8473721,155.49,155.44,20.0]
[1723338857101,0.8473721,155.49,155.45,20.36622961]
[1723338857404,0.8473721,155.49,155.46,20.12549]
[1723338857604,0.8473721,155.49,155.47,0.25098]
[1723338858684,0.8473721,155.49,155.48,0.12549]
[1723338859707,0.8473721,155.49,155.48,0.25098]
[1723338859902,0.8473721,155.49,155.48,0.50196]
[1723338860390,0.8473721,155.49,155.48,0.37647]
[1723338860707,0.8473721,155.49,155.48,0.50196]
[1723338865306,0.8473721,155.49,155.46,20.0]
[1723338865619,0.8473721,155.49,155.47,0.37647]
[1723338867216,0.8473721,155.49,155.44,0.12549]
[1723338867393,0.8473721,155.49,155.44,65.0]
[1723338867797,0.8473721,155.49,155.43,19.08]
[1723338868017,6.9089721,155.49,155.41,19.08]
[1723338868706,6.9089721,155.49,155.42,1.28655444]
[1723338868919,6.9089721,155.49,155.41,19.08]
[1723338869290,6.9089721,155.49,155.42,20.0]
[1723338869802,6.9089721,155.49,155.43,0.37647]
[1723338871025,15.7691,155.47,155.37,19.08]
[1723338871203,19.08,155.46,155.37,19.08]
[1723338872607,15.7691,155.47,155.37,19.08]
[1723338873213,15.7691,155.47,155.38,65.50196]
[1723338874000,19.08,155.46,155.38,65.50196]
[1723338874725,19.08,155.46,155.38,20.50196]
[1723338874927,6.2812,155.45,155.35,19.08]
[1723338875107,19.08,155.44,155.35,19.08]
[1723338875421,19.08,155.44,155.36,20.0]
[1723338875729,6.2812,155.45,155.37,19.08]
[1723338876023,6.2812,155.45,155.38,20.0]
[1723338877615,6.2812,155.45,155.37,0.25098]
[1723338877820,19.08,155.44,155.37,0.25098]
[1723338878612,15.2186,155.43,155.37,0.25098]
[1723338878917,15.2186,155.43,155.35,0.12549]
[1723338879118,15.2186,155.43,155.35,45.50196]
[1723338879317,15.2186,155.43,155.36,20.0]
[1723338879919,15.2186,155.43,155.35,19.20549]
[1723338880120,15.2186,155.43,155.36,20.0]
[1723338881223,15.2186,155.43,155.35,0.12549]
[1723338881424,15.2186,155.43,155.35,0.37647]
[1723338882451,19.08,155.4,155.3,19.08]
[1723338882737,19.08,155.4,155.29,19.08]
[1723338883452,19.08,155.4,155.31,19.08]
[1723338883810,19.08,155.4,155.32,20.0]
[1723338884631,19.08,155.4,155.33,0.50196]
[1723338885223,19.08,155.4,155.31,19.08]
[1723338885430,19.08,155.4,155.32,20.37647]
[1723338886925,19.08,155.4,155.32,20.25098]
[1723338887141,19.08,155.4,155.32,20.0]
[1723338888531,21.4998,155.41,155.33,0.50196]
[1723338890334,21.4998,155.41,155.35,19.08]
[1723338891131,21.4998,155.41,155.36,0.25098]
[1723338891327,21.4998,155.41,155.36,21.53804959]
[1723338891938,21.4998,155.41,155.36,20.25098]
[1723338894227,21.4998,155.41,155.36,20.12549]
[1723338894432,21.4998,155.41,155.36,0.12549]
[1723338894647,21.4998,155.41,155.36,0.37647]
[1723338894846,21.4998,155.41,155.37,19.20549]
[1723338895165,21.4998,155.41,155.38,0.25098]
[1723338895348,21.4998,155.41,155.36,20.37647]
[1723338897742,42.1725,155.48,155.37,65.49251572]
[1723338897941,42.1725,155.48,155.39,0.12549]
[1723338898144,42.1725,155.48,155.39,46.41222473]
[1723338898341,42.1725,155.48,155.4,0.37647]
[1723338900562,48.6042,155.48,155.4,0.37647]
[1723338901360,42.1725,155.48,155.4,0.37647]
[1723338901935,48.6042,155.48,155.4,0.37647]
[1723338902262,42.1725,155.48,155.4,0.37647]
[1723338902451,42.1725,155.48,155.41,0.12549]
[1723338902638,23.0925,155.48,155.41,0.12549]
[1723338902844,23.0925,155.48,155.41,45.12549]
[1723338903153,23.0925,155.48,155.42,0.37647]
[1723338903354,23.0925,155.48,155.42,1.6630449]
[1723338903561,23.0925,155.48,155.42,0.37647]
[1723338903756,23.0925,155.48,155.43,1.41198939]
[1723338903959,23.0925,155.48,155.44,0.37647]
[1723338904149,42.1725,155.48,155.34,20.98159118]
[1723338904456,42.1725,155.48,155.37,19.08]
[1723338904457,19.08,155.46,155.37,19.08]
[1723338904665,16.6612,155.42,155.35,19.08]
[1723338905761,16.6612,155.42,155.36,46.53799256]
[1723338905962,16.6612,155.42,155.37,0.25098]
[1723338906151,16.6612,155.42,155.38,0.25098]
[1723338906350,16.6612,155.42,155.39,0.25098]
[1723338907343,16.6612,155.42,155.4,0.12549]
[1723338908370,16.6612,155.42,155.39,0.25098]
[1723338910353,16.6612,155.42,155.38,0.12549]
[1723338910561,16.6612,155.42,155.37,0.25098]
[1723338910861,16.6612,155.42,155.36,20.0]
[1723338911066,16.6612,155.42,155.37,0.12549]
[1723338911264,35.7412,155.42,155.33,19.08]
[1723338911453,35.7412,155.42,155.31,19.08]
[1723338912662,35.7412,155.42,155.32,21.28729036]
[1723338912857,0.8473721,155.49,155.29,8.29926694]
[1723338912858,19.08,155.38,155.29,8.29926694]
[1723338913070,19.08,155.38,155.26,18.76887884]
[1723338913368,19.08,155.38,155.28,19.08]
[1723338913872,19.08,155.38,155.27,1.28743225]
[1723338914075,19.08,155.38,155.29,19.08]
[1723338914378,19.08,155.38,155.3,20.0]
[1723338914874,19.08,155.38,155.31,0.25098]
[1723338915256,6.1263,155.37,155.31,0.25098]
[1723338915452,6.1263,155.37,155.3,20.0]
[1723338916161,6.1263,155.37,155.28,20.0]
[1723338916667,15.6799,155.35,155.3,0.12549]
[1723338916869,15.6799,155.35,155.3,20.37647]
[1723338917073,15.6799,155.35,155.3,0.37647]
[1723338917249,15.6799,155.35,155.28,20.0]
[1723338918266,15.6799,155.35,155.26,20.0]
[1723338919597,19.08,155.34,155.27,0.12549]
[1723338919884,6.1263,155.33,155.27,0.50196]
[1723338922587,6.1263,155.33,155.27,0.37647]
[1723338922876,6.1263,155.33,155.27,0.25098]
[1723338923676,6.1263,155.33,155.28,0.12549]
[1723338923982,6.1263,155.33,155.28,0.25098]
[1723338925363,15.6799,155.32,155.27,0.12549]
[1723338925579,34.7599,155.32,155.24,20.0]
[1723338925781,34.7599,155.32,155.25,0.25098]
[1723338926870,34.7599,155.32,155.26,0.12549]
[1723338927091,34.7599,155.32,155.23,29.16683401]
[1723338927092,6.1263,155.31,155.23,10.08683401]
[1723338927266,19.08,155.3,155.21,19.08]
[1723338927472,6.1263,155.31,155.23,19.08]
[1723338927672,6.1263,155.31,155.24,1.28800245]
[1723338927879,6.1263,155.31,155.25,19.08]
[1723338928091,6.1263,155.31,155.26,1.28778016]
[1723338928265,6.1263,155.31,155.27,1.28778686]
[1723338928586,6.1263,155.31,155.28,0.25098]
[1723338928761,6.1263,155.31,155.28,0.37647]
[1723338929165,6.1263,155.31,155.28,1.66424674]
[1723338929361,6.1263,155.31,155.29,0.12549]
[1723338929567,6.1263,155.31,155.29,19.20549]
[1723338929867,6.1263,155.31,155.3,0.37647]
[1723338931880,6.1263,155.31,155.3,0.25098]
[1723338932102,6.1263,155.31,155.27,19.08]
[1723338932387,6.1263,155.31,155.28,0.37647]
[1723338933203,6.1263,155.31,155.29,0.12549]
[1723338933375,6.1263,155.31,155.29,20.49315583]
[1723338933567,6.1263,155.31,155.3,0.37647]
[1723338934867,6.1273,155.35,155.3,20.37647]
[1723338935090,6.1273,155.35,155.31,0.12549]
[1723338935476,6.1273,155.35,155.3,0.37647]
[1723338937207,6.1273,155.35,155.31,19.20549]
[1723338937378,6.1273,155.35,155.33,0.12549]
[1723338937692,6.1273,155.35,155.33,1.41285074]
[1723338938895,16.5389,155.36,155.34,0.37647]
[1723338939602,6.1273,155.39,155.35,0.12549]
[1723338939801,16.5389,155.4,155.38,0.12549]
[1723338939985,22.6662,155.44,155.38,45.37647]
[1723338940309,22.6662,155.44,155.39,0.12549]
[1723338940483,22.6662,155.44,155.39,0.25098]
[1723338942093,22.6662,155.44,155.39,1.5378295]
[1723338942269,22.6662,155.44,155.4,0.12549]
[1723338942472,22.6662,155.44,155.4,0.25098]
[1723338942901,22.6662,155.44,155.39,1.2868495]
[1723338943076,22.6662,155.44,155.34,20.0]
[1723338943077,25.5138,155.43,155.34,20.0]
[1723338943287,19.08,155.41,155.32,19.08]
[1723338943594,19.08,155.41,155.33,20.0]
[1723338943967,29.0995,155.44,155.33,20.0]
[1723338943968,19.08,155.43,155.33,20.0]
[1723338944170,25.5139,155.43,155.33,20.0]
[1723338944385,19.08,155.41,155.34,45.37647]
[1723338944578,19.08,155.41,155.34,0.25098]
[1723338945791,19.08,155.41,155.34,20.25098]
[1723338945991,19.08,155.41,155.35,0.25098]
[1723338946497,19.08,155.41,155.3,29.1502]
[1723338946676,19.08,155.39,155.31,20.0]
[1723338947894,16.5389,155.4,155.32,45.37647]
[1723338948090,16.5389,155.4,155.33,20.12549]
[1723338948274,16.5389,155.4,155.34,0.25098]
[1723338949480,19.08,155.39,155.34,0.12549]
[1723338949683,19.08,155.37,155.28,19.08]
[1723338949991,19.08,155.35,155.26,19.08]
[1723338950195,19.08,155.33,155.24,15.02827286]
[1723338950396,25.2073,155.33,155.23,19.08]
[1723338951283,19.08,155.31,155.21,16.82402287]
[1723338951605,19.08,155.29,155.21,10.09069594]
[1723338953281,19.08,155.29,155.2,27.37926694]
[1723338953487,19.08,155.29,155.21,20.0]
[1723338953802,19.08,155.29,155.22,45.0]
[1723338953997,19.08,155.29,155.23,20.0]
[1723338954199,19.08,155.31,155.23,21.28809062]
[1723338954403,19.08,155.31,155.24,46.28809062]
[1723338954698,19.08,155.31,155.25,0.25098]
[1723338955002,19.08,155.31,155.25,0.12549]
[1723338955903,19.08,155.31,155.23,20.0]
[1723338956199,19.08,155.29,155.22,0.37647]
[1723338956390,19.08,155.29,155.23,0.12549]
[1723338956590,19.08,155.29,155.23,20.37647]
[1723338958181,19.08,155.31,155.24,1.41365834]
[1723338958497,19.08,155.31,155.25,1.41356066]
[1723338958697,19.08,155.31,155.26,0.12549]
[1723338958888,19.08,155.31,155.26,0.37647]
[1723338960292,19.08,155.31,155.23,20.0]
[1723338960500,19.08,155.31,155.24,0.12549]
[1723338960707,16.5389,155.34,155.18,19.08]
[1723338960708,25.4546,155.27,155.18,19.08]
[1723338961086,25.4546,155.27,155.19,10.09340019]
[1723338961795,25.4546,155.27,155.18,19.08]
[1723338962383,19.08,155.25,155.16,19.08]
[1723338962901,19.08,155.25,155.15,10.09399546]
[1723338963216,19.08,155.21,155.12,19.08]
[1723338963594,19.08,155.21,155.12,20.36885044]
[1723338964589,19.08,155.21,155.13,20.0]
[1723338965410,15.7131,155.22,155.15,0.12549]
[1723338965609,15.7131,155.22,155.15,66.53972242]
[1723338965793,15.7131,155.22,155.16,0.25098]
[1723338966106,15.7131,155.22,155.17,0.12549]
[1723338970607,15.7131,155.22,155.17,0.25098]
[1723338970911,15.7131,155.22,155.18,0.25098]
[1723338972306,15.7131,155.22,155.19,0.12549]
[1723338977239,19.08,155.25,155.19,0.12549]
[1723338977534,15.0472,155.26,155.19,0.25098]
[1723338977915,21.4881,155.26,155.19,0.25098]
[1723338978439,15.0472,155.26,155.19,0.25098]
[1723338978613,25.5213,155.25,155.19,0.12549]
[1723338979319,25.5213,155.25,155.18,0.25098]
[1723338979715,19.08,155.23,155.15,20.0]
[1723338979926,19.08,155.21,155.12,19.08]
[1723338980110,19.08,155.21,155.1,29.17694408]
[1723338980314,21.2835,155.2,155.1,29.17694408]
[1723338981950,21.2835,155.2,155.11,20.0]
[1723338982452,21.2835,155.2,155.12,0.25098]
[1723338982627,21.2835,155.2,155.13,0.37647]
[1723338982933,21.2835,155.2,155.14,0.25098]
[1723338984131,19.08,155.19,155.14,0.12549]
[1723338984336,19.08,155.19,155.09,10.0702]
[1723338984518,19.08,155.19,155.08,19.08]
[1723338984718,25.5239,155.19,155.08,29.17922699]
[1723338985343,19.08,155.17,155.08,29.17922699]
[1723338985843,19.08,155.17,155.09,45.0]
[1723338986053,19.08,155.15,155.08,10.09922699]
[1723338986258,15.0472,155.14,155.05,10.0702]
[1723338986438,21.2835,155.14,155.04,37.48013546]
[1723338987542,21.2835,155.14,155.06,19.08]
[1723338987741,21.2835,155.14,155.07,65.50196]
[1723338989244,21.2835,155.14,155.04,10.10086852]
[1723338989245,19.08,155.11,155.04,10.10086852]
[1723338989441,19.08,155.11,155.05,20.0]
[1723338989926,19.08,155.13,155.05,20.0]
[1723338990441,19.08,155.13,155.06,0.12549]
[1723338990639,19.08,155.13,155.06,0.50196]
[1723338990839,19.08,155.13,155.06,0.37647]
[1723338991140,19.08,155.11,155.02,19.08]
[1723338991345,19.08,155.11,155.01,10.10445458]
[1723338992320,19.08,155.11,155.02,1.28978835]
[1723338992525,19.08,155.11,155.02,21.28978835]
[1723338992837,19.08,155.11,155.03,0.12549]
[1723338993036,19.08,155.13,155.05,0.12549]
[1723338993242,19.08,155.13,155.05,46.66598926]
[1723338993543,19.08,155.13,155.06,0.12549]
[1723338996739,19.08,155.13,155.06,1.41505069]
[1723338997051,21.2835,155.14,155.07,0.37647]
[1723338997225,21.2835,155.14,155.08,0.12549]
[1723338997834,21.2835,155.14,155.08,1.41491954]
[1723338999134,21.2835,155.14,155.08,0.12549]
[1723338999352,19.08,155.13,155.07,0.25098]
[1723338999550,19.08,155.13,155.07,0.12549]
[1723338999854,25.5263,155.13,155.07,0.12549]
[1723339000055,19.08,155.11,155.02,19.08]
[1723339001153,19.08,155.11,155.03,1.28977948]
[1723339001363,19.08,155.11,155.04,0.37647]
[1723339001536,19.08,155.11,155.05,0.12549]
[1723339003742,25.5262,155.13,155.05,0.25098]
[1723339003934,19.08,155.11,155.05,0.12549]
[1723339004448,19.08,155.11,155.05,0.25098]
[1723339006745,19.08,155.09,155.01,10.10445458]
[1723339006962,19.08,155.09,155.0,19.08]
[1723339007263,19.08,155.09,155.01,20.0]
[1723339008061,19.08,155.09,155.02,0.12549]
[1723339008264,19.08,155.09,155.02,0.50196]
[1723339009160,6.4464,155.13,155.02,0.50196]
[1723339009356,39.08,155.12,155.02,65.87187067]
[1723339011058,39.08,155.12,155.02,64.58196]
[1723339011252,45.5268,155.12,155.02,64.58196]
[1723339011461,19.08,155.1,155.02,45.50196]
[1723339011661,20.0,155.12,155.03,1.28977231]
[1723339011957,19.08,155.12,155.04,0.37647]
[1723339012166,19.08,155.12,155.05,0.12549]
[1723339012349,19.08,155.11,155.04,0.12549]
[1723339012538,19.08,155.09,154.99,19.08]
[1723339012744,25.5279,155.09,155.0,20.12549]
[1723339013658,19.08,155.09,155.0,20.12549]
[1723339013960,19.08,155.09,155.01,45.37647]
[1723339014173,19.08,155.09,155.02,0.12549]
[1723339017063,25.5279,155.09,155.0,20.0]
[1723339017560,19.08,155.09,155.0,20.0]
[1723339018265,19.08,155.09,155.01,45.25098]
[1723339018468,19.08,155.09,155.02,0.25098]
[1723339019769,9.6,155.08,155.02,0.25098]
[1723339021468,6.4466,155.12,155.03,9.72549]
[1723339021653,9.6,155.11,155.04,11.14071022]
[1723339021979,9.6,155.11,155.05,1.41518351]
[1723339022546,21.2835,155.14,155.06,0.12549]
[1723339022861,9.6,155.13,155.06,1.66602948]
[1723339023256,9.6,155.11,155.06,0.25098]
[1723339024969,9.6,155.1,155.02,9.6]
[1723339025178,9.6,155.09,155.01,9.6]
[1723339025367,9.6,155.08,155.01,9.6]
[1723339025664,9.6,155.07,155.0,9.6]
[1723339025872,9.6,155.05,154.98,10.0702]
[1723339026257,9.6,155.03,154.96,9.6]
[1723339027474,9.6,155.03,154.97,0.25098]
[1723339027664,19.21,155.04,154.98,0.37647]
[1723339027864,19.21,155.04,154.95,27.90867884]
[1723339028070,19.21,155.02,154.94,10.9175721]
[1723339028262,19.21,155.02,154.95,20.0]
[1723339029484,34.2564,155.02,154.95,20.0]
[1723339029664,34.2564,155.02,154.94,20.9728621]
[1723339030381,40.4442,155.02,154.94,0.8473721]
[1723339030781,40.4442,155.02,154.95,0.25098]
[1723339034361,46.895,155.02,154.95,0.25098]
[1723339034591,40.4442,155.02,154.96,0.12549]
[1723339034761,15.0464,155.02,154.97,19.21]
[1723339035092,6.0826,155.06,154.97,19.21]
[1723339035093,40.9674,155.06,154.98,1.54119374]
[1723339035290,21.7574,155.06,154.99,1.29020173]
[1723339035578,21.7574,155.06,155.0,0.25098]
[1723339035772,21.7574,155.06,155.0,1.54104159]
[1723339037765,21.7574,155.06,155.0,0.12549]
[1723339038080,21.7574,155.06,154.95,19.21]
[1723339038081,19.21,155.04,154.95,19.21]
[1723339038277,25.6599,155.04,154.96,20.0]
[1723339038460,19.21,155.04,154.96,20.0]
[1723339039399,47.4169,155.06,154.97,0.37647]
[1723339039696,21.7574,155.06,154.99,0.12549]
[1723339039900,21.7574,155.06,154.99,1.66653129]
[1723339040062,21.7574,155.06,155.0,0.12549]
[1723339040683,40.9674,155.1,155.01,19.33549]
[1723339040884,28.2048,155.1,155.03,0.12549]
[1723339041068,6.448,155.09,155.02,0.37647]
[1723339041865,47.4149,155.1,155.03,0.12549]
[1723339042067,21.7574,155.1,155.03,0.12549]
[1723339042283,21.7574,155.1,155.03,19.33549]
[1723339042489,21.7574,155.1,155.04,1.66618767]
[1723339042666,21.7574,155.1,155.05,1.28971767]
[1723339043566,21.7574,155.1,155.04,1.66618761]
[1723339044384,21.7574,155.1,155.05,0.12549]
[1723339044599,15.6748,155.1,155.05,20.62507378]